bitfinex/quotes_BTCUSD_20241110
["timestamp","ask_amount","ask_price","bid_price","bid_amount"]
[1731207215707,0.13203669,77297.0,77296.0,0.05540867]
[1731207216126,0.13203669,77297.0,77296.0,0.00778179]
[1731207216343,0.13203669,77297.0,77296.0,0.05540879]
[1731207217034,0.13203669,77297.0,77296.0,0.00778179]
[1731207217633,0.13203669,77297.0,77296.0,0.000836]
[1731207218265,0.13203669,77297.0,77296.0,0.04587007]
[1731207218676,0.13203669,77297.0,77296.0,0.00778179]
[1731207218876,0.10803669,77297.0,77296.0,0.00778179]
[1731207219617,0.001672,77310.0,77297.0,0.1]
[1731207219618,0.02671479,77308.0,77297.0,0.1]
[1731207219836,0.02671479,77308.0,77298.0,0.04762264]
[1731207219837,0.19452099,77299.0,77298.0,0.04762264]
[1731207220056,0.13224102,77307.0,77298.0,0.05351824]
[1731207220275,0.13224102,77307.0,77299.0,0.04762264]
[1731207220513,0.13224102,77307.0,77300.0,0.04762264]
[1731207220720,0.13224102,77307.0,77300.0,0.05351579]
[1731207220953,0.13224102,77307.0,77301.0,0.04762264]
[1731207221180,0.13224102,77307.0,77302.0,0.04762264]
[1731207221404,0.13224102,77307.0,77303.0,0.04762264]
[1731207221652,0.13224102,77307.0,77305.0,0.1]
[1731207221857,0.13224102,77307.0,77306.0,0.04762264]
[1731207222065,0.13224102,77307.0,77306.0,0.0534917]
[1731207223962,0.13224102,77307.0,77306.0,0.05350282]
[1731207227252,0.001672,77310.0,77306.0,0.20180282]
[1731207227452,0.001672,77310.0,77307.0,0.14763376]
[1731207227711,0.001672,77310.0,77308.0,0.04763376]
[1731207227948,0.001672,77310.0,77309.0,0.04763376]
[1731207228155,0.001672,77310.0,77309.0,0.04769877]
[1731207228342,0.001672,77310.0,77309.0,0.05272384]
[1731207228914,0.19452099,77316.0,77309.0,0.05272384]
[1731207229153,0.13224102,77315.0,77310.0,0.04769877]
[1731207229366,0.13224102,77315.0,77311.0,0.04769877]
[1731207229575,0.13224102,77315.0,77312.0,0.04769877]
[1731207229805,0.13224102,77315.0,77313.0,0.04769877]
[1731207230016,0.13224102,77315.0,77314.0,0.04769877]
[1731207230234,0.13224102,77315.0,77314.0,0.05272142]
[1731207230889,0.13224102,77315.0,77314.0,0.05282792]
[1731207231101,0.13224102,77315.0,77314.0,0.05596537]
[1731207232438,0.13224102,77315.0,77314.0,0.15596537]
[1731207233348,0.13224102,77315.0,77314.0,0.22094255]
[1731207234097,0.13224102,77315.0,77314.0,0.12095364]
[1731207234355,0.13224102,77315.0,77314.0,0.22095364]
[1731207236671,0.10824102,77315.0,77314.0,0.22095364]
[1731207237483,0.10824102,77315.0,77314.0,0.12094493]
[1731207237697,0.10824102,77315.0,77314.0,0.22094493]
[1731207240335,0.10824102,77315.0,77314.0,0.03488468]
[1731207240615,0.10824102,77315.0,77314.0,0.22095584]
[1731207240843,0.10824102,77315.0,77314.0,0.22095654]
[1731207241251,0.10991302,77315.0,77314.0,0.22095654]
[1731207243510,0.10991302,77315.0,77314.0,0.22279222]
[1731207244022,0.10991302,77315.0,77314.0,0.07497452]
[1731207244229,0.10991302,77315.0,77314.0,0.074964]
[1731207246056,0.10991302,77315.0,77314.0,0.03672036]
[1731207246264,0.10991302,77315.0,77314.0,0.07495008]
[1731207248569,0.08591302,77315.0,77314.0,0.07495008]
[1731207248851,0.08591302,77315.0,77314.0,0.07178998]
[1731207248995,0.08591302,77315.0,77314.0,0.0649543]
[1731207249172,0.08591302,77315.0,77314.0,0.0749481]
[1731207250797,0.08591302,77315.0,77314.0,0.03671838]
[1731207251009,0.08591302,77315.0,77314.0,0.07499078]
[1731207252263,0.08591302,77315.0,77314.0,0.20083078]
[1731207254311,0.08591302,77315.0,77314.0,0.06255838]
[1731207254530,0.001672,77315.0,77314.0,0.32954899]
[1731207254761,0.001672,77315.0,77314.0,0.29329438]
[1731207254971,0.19452099,77331.0,77314.0,0.29329438]
[1731207254972,0.19452099,77331.0,77314.0,0.32954067]
[1731207255196,0.19452099,77321.0,77315.0,0.13824629]
[1731207255409,0.13224102,77330.0,77316.0,0.03824629]
[1731207255666,0.13224102,77330.0,77317.0,0.03824629]
[1731207255891,0.13224102,77330.0,77318.0,0.03824629]
[1731207256117,0.13224102,77330.0,77319.0,0.03824629]
[1731207256327,0.13224102,77330.0,77320.0,0.03824629]
[1731207256540,0.13224102,77330.0,77321.0,0.03824629]
[1731207256761,0.13224102,77330.0,77322.0,0.03824629]
[1731207256995,0.13224102,77330.0,77323.0,0.03824629]
[1731207257198,0.13224102,77330.0,77315.0,0.1]
[1731207257199,0.13224102,77330.0,77324.0,0.03824629]
[1731207257428,0.13224102,77330.0,77325.0,0.03824629]
[1731207257866,0.13224102,77330.0,77326.0,0.03824629]
[1731207258325,0.13224102,77330.0,77327.0,0.03824629]
[1731207258561,0.13224102,77330.0,77315.0,0.1]
[1731207258562,0.13224102,77330.0,77328.0,0.03824629]
[1731207258785,0.13224102,77330.0,77329.0,0.03824629]
[1731207259013,0.13224102,77330.0,77329.0,0.04823603]
[1731207259476,0.13224102,77330.0,77329.0,0.22373603]
[1731207260147,0.13224102,77330.0,77329.0,0.1325694]
[1731207260570,0.13224102,77330.0,77329.0,0.0325694]
[1731207260800,0.29447609,77330.0,77329.0,0.0325694]
[1731207261010,0.29447609,77330.0,77329.0,0.00998974]
[1731207261224,0.13224102,77330.0,77321.0,0.1755]
[1731207261428,0.13224102,77330.0,77329.0,0.02706334]
[1731207261638,0.13224102,77330.0,77322.0,0.1099428]
[1731207261843,0.13224102,77330.0,77322.0,0.1]
[1731207262064,0.13224102,77330.0,77323.0,0.00994117]
[1731207262513,0.13224102,77330.0,77329.0,0.03818044]
[1731207263173,0.13224102,77330.0,77329.0,0.2214]
[1731207263646,0.13224102,77330.0,77329.0,0.23128853]
[1731207264101,0.13224102,77330.0,77329.0,0.25852093]
[1731207264324,0.001672,77335.0,77330.0,0.1]
[1731207264566,0.13224102,77334.0,77330.0,0.1]
[1731207264740,0.13224102,77334.0,77331.0,0.00989343]
[1731207265459,0.13224102,77334.0,77332.0,0.0755]
[1731207265858,0.13224102,77334.0,77333.0,0.00988853]
[1731207267106,0.10824102,77334.0,77323.0,0.03813573]
[1731207267313,0.16223507,77330.0,77319.0,0.03813573]
[1731207267517,0.13224102,77329.0,77318.0,0.11363573]
[1731207267726,0.16223507,77321.0,77318.0,0.06571841]
[1731207267949,0.13224102,77320.0,77318.0,0.06571841]
[1731207268157,0.13224102,77320.0,77318.0,0.02758268]
[1731207268366,0.13224102,77320.0,77318.0,0.06571841]
[1731207268569,0.13224102,77320.0,77318.0,0.03813573]
[1731207268981,0.13224102,77320.0,77315.0,0.000836]
[1731207268982,0.13224102,77320.0,77317.0,0.03813573]
[1731207269207,0.13224102,77320.0,77315.0,0.02806721]
[1731207269612,0.13224102,77320.0,77315.0,0.000836]
[1731207270037,0.13224102,77320.0,77316.0,0.03816774]
[1731207270191,0.13224102,77320.0,77317.0,0.03816774]
[1731207270391,0.13224102,77320.0,77318.0,0.03816774]
[1731207270569,0.13224102,77320.0,77319.0,0.03816774]
[1731207272814,0.13224102,77320.0,77319.0,0.04803721]
[1731207273612,0.13224102,77320.0,77319.0,0.14803721]
[1731207274507,0.13224102,77320.0,77319.0,0.1862105]
[1731207274723,0.13224102,77320.0,77319.0,0.14803721]
[1731207274966,0.13224102,77320.0,77319.0,0.00986947]
[1731207275201,0.13224102,77320.0,77319.0,0.22439284]
[1731207277807,0.13224102,77320.0,77319.0,0.22522884]
[1731207278031,0.13224102,77320.0,77319.0,0.14887988]
[1731207278234,0.13224102,77320.0,77319.0,0.04887988]
[1731207279332,0.10824102,77320.0,77319.0,0.04887988]
[1731207279793,0.10824102,77320.0,77319.0,0.22457988]
[1731207281513,0.10824102,77320.0,77319.0,0.22457916]
[1731207284317,0.10824102,77320.0,77319.0,0.25041916]
[1731207285607,0.10824102,77320.0,77319.0,0.25541916]
[1731207286288,0.10824102,77320.0,77319.0,0.25741916]
[1731207286518,0.10824102,77320.0,77319.0,0.2574222]
[1731207287096,0.10824102,77320.0,77319.0,0.2554222]
[1731207287921,0.10824102,77320.0,77319.0,0.2245822]
[1731207288122,0.10824102,77320.0,77319.0,0.0488822]
[1731207291556,0.10824102,77320.0,77319.0,0.04889076]
[1731207293746,0.08424102,77320.0,77319.0,0.04889076]
[1731207295051,0.08424102,77320.0,77319.0,0.02677943]
[1731207295243,0.11138261,77320.0,77319.0,0.03505863]
[1731207295459,0.11138261,77320.0,77319.0,0.0082792]
[1731207295665,0.11138261,77320.0,77315.0,0.000836]
[1731207296065,0.13224102,77316.0,77314.0,0.01535069]
[1731207296333,0.45337609,77315.0,77302.0,0.000836]
[1731207296525,0.13224102,77309.0,77308.0,0.02675323]
[1731207296756,0.13224102,77309.0,77302.0,0.000836]
[1731207296984,0.16223507,77303.0,77302.0,0.000836]
[1731207297195,0.28947609,77303.0,77302.0,0.000836]
[1731207299345,0.28947609,77303.0,77302.0,0.0279495]
[1731207299752,0.28947609,77303.0,77302.0,0.000836]
[1731207300860,0.13224102,77303.0,77302.0,0.000836]
[1731207303410,0.13224102,77303.0,77302.0,0.00921632]
[1731207303614,0.13224102,77303.0,77302.0,0.000836]
[1731207303820,0.13224102,77303.0,77302.0,0.00921632]
[1731207305069,0.13224102,77303.0,77302.0,0.04736941]
[1731207307896,0.13224102,77303.0,77302.0,0.00921632]
[1731207308086,0.13224102,77303.0,77302.0,0.04735387]
[1731207308801,0.13224102,77303.0,77302.0,0.00921632]
[1731207309034,0.10824102,77303.0,77302.0,0.00921632]
[1731207309228,0.10824102,77303.0,77302.0,0.23711632]
[1731207310540,0.10824102,77303.0,77302.0,0.26295632]
[1731207313275,0.001672,77320.0,77306.0,0.005]
[1731207313470,0.13224102,77319.0,77317.0,0.02584]
[1731207313742,0.001672,77320.0,77319.0,0.10634]
[1731207313883,0.001672,77320.0,77319.0,0.25374]
[1731207314089,0.001672,77320.0,77319.0,0.26212292]
[1731207315971,0.001672,77320.0,77319.0,0.23628292]
[1731207316202,0.001672,77320.0,77319.0,0.26212292]
[1731207318937,0.001672,77320.0,77319.0,0.28884697]
[1731207322005,0.13391302,77320.0,77319.0,0.03510697]
[1731207323407,0.13391302,77320.0,77319.0,0.02672405]
[1731207323617,0.13391302,77320.0,77309.0,0.12584]
[1731207323790,0.13224102,77319.0,77309.0,0.12584]
[1731207324181,0.13224102,77319.0,77311.0,0.02584]
[1731207324380,0.10824102,77319.0,77311.0,0.02584]
[1731207324816,0.10824102,77319.0,77312.0,0.00836199]
[1731207325447,0.10824102,77319.0,77310.0,0.02584]
[1731207325643,0.21752099,77318.0,77313.0,0.00836035]
[1731207325885,0.13224102,77317.0,77310.0,0.02584]
[1731207326303,0.13224102,77317.0,77311.0,0.00836035]
[1731207327207,0.13224102,77317.0,77312.0,0.02584]
[1731207327422,0.13224102,77317.0,77312.0,0.03419872]
[1731207329173,0.023,77316.0,77312.0,0.00835872]
[1731207329414,0.13224102,77313.0,77309.0,0.02654482]
[1731207329668,0.16223507,77318.0,77303.0,0.026676]
[1731207329669,0.13224102,77310.0,77303.0,0.026676]
[1731207329872,0.18523507,77312.0,77303.0,0.000836]
[1731207329873,0.15524102,77309.0,77303.0,0.000836]
[1731207330128,0.15524102,77309.0,77304.0,0.00836771]
[1731207330540,0.15524102,77309.0,77303.0,0.000836]
[1731207330862,0.15524102,77309.0,77305.0,0.00841346]
[1731207331072,0.15524102,77309.0,77303.0,0.000836]
[1731207331352,0.15524102,77309.0,77304.0,0.00841509]
[1731207331780,0.15524102,77309.0,77303.0,0.02746148]
[1731207332241,0.15524102,77309.0,77303.0,0.000836]
[1731207336162,0.15524102,77309.0,77307.0,0.03819617]
[1731207338019,0.15524102,77309.0,77308.0,0.03819617]
[1731207338218,0.15524102,77309.0,77308.0,0.04660473]
[1731207339045,0.15424102,77309.0,77308.0,0.00840856]
[1731207339464,0.15424102,77309.0,77303.0,0.03903217]
[1731207339670,0.15424102,77309.0,77308.0,0.00840856]
[1731207339876,0.15424102,77309.0,77303.0,0.03903217]
[1731207340081,0.15424102,77309.0,77308.0,0.00840856]
[1731207340291,0.15424102,77309.0,77303.0,0.03903217]
[1731207340485,0.15424102,77309.0,77308.0,0.00845759]
[1731207340649,0.15424102,77309.0,77303.0,0.03903217]
[1731207340879,0.15424102,77309.0,77308.0,0.00845759]
[1731207341106,0.15424102,77309.0,77303.0,0.000836]
[1731207341312,0.15424102,77309.0,77308.0,0.00845759]
[1731207341484,0.15424102,77309.0,77303.0,0.000836]
[1731207342067,0.15424102,77309.0,77304.0,0.04666029]
[1731207342465,0.15424102,77309.0,77304.0,0.00846412]
[1731207345211,0.15424102,77309.0,77303.0,0.000836]
[1731207345421,0.15524102,77308.0,77303.0,0.000836]
[1731207348413,0.15524102,77308.0,77304.0,0.00850281]
[1731207348657,0.15524102,77308.0,77303.0,0.000836]
[1731207348869,0.15524102,77308.0,77304.0,0.000836]
[1731207349071,0.15524102,77308.0,77304.0,0.00933881]
[1731207349262,0.13224102,77308.0,77307.0,0.03820189]
[1731207349603,0.13224102,77308.0,77307.0,0.00849791]
[1731207349801,0.13224102,77308.0,77307.0,0.03820189]
[1731207350409,0.13224102,77308.0,77307.0,0.0466998]
[1731207350609,0.13224102,77308.0,77304.0,0.000836]
[1731207350823,0.13224102,77308.0,77307.0,0.0467208]
[1731207351024,0.13224102,77308.0,77307.0,0.03822289]
[1731207351221,0.13224102,77308.0,77307.0,0.00849791]
[1731207351423,0.13224102,77308.0,77304.0,0.000836]
[1731207352532,0.13224102,77308.0,77305.0,0.00851164]
[1731207353469,0.13224102,77308.0,77304.0,0.000836]
[1731207353905,0.13224102,77308.0,77305.0,0.00851164]
[1731207354114,0.10824102,77308.0,77304.0,0.03908719]
[1731207354449,0.10824102,77308.0,77305.0,0.04676283]
[1731207354636,0.10824102,77308.0,77305.0,0.03825119]
[1731207354854,0.10824102,77308.0,77306.0,0.00851]
[1731207355285,0.10824102,77308.0,77306.0,0.03825119]
[1731207355485,0.10824102,77308.0,77305.0,0.03825119]
[1731207356193,0.10824102,77308.0,77306.0,0.00851319]
[1731207356382,0.10824102,77308.0,77306.0,0.03826314]
[1731207356766,0.10824102,77308.0,77307.0,0.00851155]
[1731207357180,0.10824102,77308.0,77307.0,0.03826314]
[1731207357440,0.10824102,77308.0,77307.0,0.04677469]
[1731207357785,0.10824102,77308.0,77306.0,0.03826314]
[1731207358214,0.10824102,77308.0,77307.0,0.03826314]
[1731207358425,0.10824102,77308.0,77307.0,0.04677469]
[1731207358640,0.10824102,77308.0,77307.0,0.03826314]
[1731207359073,0.10824102,77308.0,77304.0,0.000836]
[1731207359749,0.10824102,77308.0,77305.0,0.00851482]
[1731207359968,0.10824102,77308.0,77304.0,0.000836]
[1731207360176,0.10824102,77308.0,77307.0,0.03830284]
[1731207360443,0.10824102,77308.0,77304.0,0.000836]
[1731207361377,0.10824102,77308.0,77307.0,0.0383026]
[1731207361805,0.10824102,77308.0,77307.0,0.00851155]
[1731207362344,0.10824102,77308.0,77304.0,0.000836]
[1731207362551,0.023,77308.0,77304.0,0.000836]
[1731207362785,0.7049,77308.0,77296.0,0.000836]
[1731207363126,0.023,77306.0,77296.0,0.000836]
[1731207363333,0.18549108,77301.0,77296.0,0.000836]
[1731207363766,0.3177321,77301.0,77296.0,0.000836]
[1731207365192,0.3177321,77301.0,77296.0,0.03470671]
[1731207365393,0.023,77300.0,77284.0,0.1]
[1731207365600,0.2947321,77301.0,77284.0,0.1]
[1731207365601,0.15524102,77294.0,77284.0,0.1]
[1731207366512,0.13224102,77294.0,77283.0,0.0796]
[1731207369147,0.10824102,77294.0,77293.0,0.02473907]
[1731207369355,0.10824102,77294.0,77293.0,0.05781227]
[1731207369546,0.10824102,77294.0,77293.0,0.02473907]
[1731207369992,0.10824102,77294.0,77293.0,0.000836]
[1731207370162,0.13124102,77294.0,77293.0,0.000836]
[1731207371010,0.2937321,77294.0,77293.0,0.000836]
[1731207376927,0.13124102,77294.0,77293.0,0.000836]
[1731207377126,0.10824102,77294.0,77293.0,0.083736]
[1731207377392,0.13124102,77294.0,77293.0,0.083736]
[1731207378047,0.13124102,77294.0,77293.0,0.09242452]
[1731207384171,0.10724102,77294.0,77293.0,0.09242452]
[1731207386081,0.10891302,77294.0,77293.0,0.09242452]
[1731207393465,0.21322523,77294.0,77293.0,0.09242452]
[1731207395840,0.08591302,77294.0,77293.0,0.09242452]
[1731207396049,0.10891302,77294.0,77293.0,0.23882452]
[1731207396444,0.001672,77294.0,77293.0,0.23882452]
[1731207397072,0.13391302,77294.0,77293.0,0.23882452]
[1731207397726,0.15691302,77294.0,77293.0,0.23882452]
[1731207399262,0.15691302,77294.0,77293.0,0.00952452]
[1731207400922,0.13291302,77294.0,77293.0,0.00952452]
[1731207401126,0.16715439,77294.0,77293.0,0.00952452]
[1731207405226,0.16715439,77294.0,77293.0,0.000836]
[1731207406130,0.023,77293.0,77287.0,0.01420518]
[1731207406346,0.023,77287.0,77282.0,0.079]
[1731207406544,0.023,77283.0,77282.0,0.079]
[1731207406776,0.15524102,77283.0,77282.0,0.079]
[1731207407922,0.15524102,77283.0,77282.0,0.12971948]
[1731207408160,0.15524102,77283.0,77282.0,0.22971948]
[1731207413762,0.25955323,77283.0,77282.0,0.22971948]
[1731207414316,0.23555323,77283.0,77282.0,0.22971948]
[1731207416319,0.36286544,77283.0,77282.0,0.22971948]
[1731207416477,0.36286544,77283.0,77282.0,0.05071948]
[1731207416904,0.25855323,77283.0,77282.0,0.05071948]
[1731207417444,0.36286544,77283.0,77282.0,0.05071948]
[1731207417854,0.36286544,77283.0,77282.0,0.04206917]
[1731207418259,0.023,77282.0,77277.0,0.0818]
[1731207418475,0.10431221,77278.0,77277.0,0.0818]
[1731207418684,0.25955323,77278.0,77277.0,0.0818]
[1731207420966,0.25955323,77278.0,77277.0,0.04112586]
[1731207421169,0.023,77277.0,77272.0,0.12584]
[1731207421387,0.12731221,77273.0,77272.0,0.12584]
[1731207421663,0.25955323,77273.0,77272.0,0.12584]
[1731207422203,0.023,77272.0,77267.0,0.000836]
[1731207422417,0.12731221,77268.0,77267.0,0.000836]
[1731207422619,0.25955323,77268.0,77267.0,0.000836]
[1731207422823,0.25955323,77268.0,77267.0,0.00955647]
[1731207423227,0.25955323,77268.0,77267.0,0.000836]
[1731207423941,0.25955323,77268.0,77267.0,0.00955892]
[1731207424144,0.25955323,77268.0,77267.0,0.000836]
[1731207424567,0.25955323,77268.0,77267.0,0.00956626]
[1731207425611,0.25955323,77268.0,77267.0,0.000836]
[1731207425798,0.36386544,77268.0,77267.0,0.000836]
[1731207427636,0.25955323,77268.0,77267.0,0.000836]
[1731207427863,0.19534673,77268.0,77267.0,0.082636]
[1731207428315,0.19534673,77268.0,77267.0,0.09151158]
[1731207428535,0.19534673,77268.0,77267.0,0.082636]
[1731207428746,0.19534673,77268.0,77267.0,0.09151158]
[1731207429397,0.6819,77278.0,77267.0,0.09151158]
[1731207429398,0.6819,77278.0,77268.0,0.0499]
[1731207429610,0.19452099,77276.0,77268.0,0.1499]
[1731207429820,0.10431221,77270.0,77269.0,0.00887195]
[1731207430036,0.23655323,77270.0,77268.0,0.1499]
[1731207430250,0.13224102,77269.0,77268.0,0.1499]
[1731207430464,0.13224102,77269.0,77267.0,0.082636]
[1731207430720,0.023,77268.0,77267.0,0.082636]
[1731207430935,0.15524102,77268.0,77267.0,0.000836]
[1731207432634,0.25955323,77268.0,77267.0,0.000836]
[1731207432837,0.15524102,77268.0,77267.0,0.000836]
[1731207433050,0.25955323,77268.0,77267.0,0.000836]
[1731207436252,0.25955323,77268.0,77255.0,0.0818]
[1731207436461,0.25955323,77268.0,77248.0,0.0781]
[1731207436462,0.10431221,77256.0,77248.0,0.0781]
[1731207436676,0.023,77256.0,77255.0,0.04202529]
[1731207436880,0.023,77256.0,77249.0,0.1]
[1731207437155,0.10431221,77252.0,77249.0,0.1]
[1731207437363,0.023,77251.0,77249.0,0.1]
[1731207437584,0.15524102,77250.0,77248.0,0.1781]
[1731207437814,0.10824102,77250.0,77248.0,0.1781]
[1731207438034,0.13124102,77250.0,77249.0,0.00894858]
[1731207438259,0.023,77249.0,77248.0,0.0781]
[1731207438507,0.15524102,77249.0,77248.0,0.0781]
[1731207438725,0.15524102,77249.0,77248.0,0.21932801]
[1731207439839,0.15524102,77249.0,77159.0,0.12889341]
[1731207439840,0.77671411,77203.0,77159.0,0.12889341]
[1731207440058,0.005,77132.0,77113.0,0.0207145]
[1731207440289,0.007,77092.0,77082.0,0.0001547]
[1731207440513,0.04,77092.0,77091.0,0.03720871]
[1731207440736,0.04,77092.0,77028.0,0.16908032]
[1731207440737,0.005,77045.0,77010.0,0.005]
[1731207440968,0.023,77036.0,77034.0,0.10431221]
[1731207441197,0.005,77059.0,77036.0,0.005]
[1731207441425,0.023,77057.0,77037.0,0.0025953]
[1731207441649,0.023,77057.0,77043.0,0.005]
[1731207441862,0.005,77058.0,77044.0,0.00259523]
[1731207442085,0.002,77048.0,77044.0,0.00259523]
[1731207442349,0.005,77071.0,77028.0,0.77171411]
[1731207442350,0.023,77038.0,77028.0,0.77171411]
[1731207442569,0.77671411,77047.0,77028.0,0.77171411]
[1731207442570,0.025,77040.0,77036.0,0.77671411]
[1731207442806,0.005,77068.0,77028.0,0.77171411]
[1731207442807,0.002,77031.0,77028.0,0.77171411]
[1731207443257,0.023,77030.0,77025.0,0.005]
[1731207443502,0.023,77030.0,77026.0,0.13224102]
[1731207443725,0.023,77030.0,77025.0,0.13724102]
[1731207443941,0.023,77030.0,77026.0,0.0486]
[1731207445261,0.025,77027.0,77026.0,0.0486]
[1731207445471,0.005,77024.0,77023.0,0.0781]
[1731207445701,0.007,77021.0,77020.0,0.5565]
[1731207445904,0.16724102,77021.0,77020.0,0.5565]
[1731207446843,0.035,77021.0,77020.0,0.5565]
[1731207447066,0.035,77021.0,77020.0,0.6565]
[1731207447512,0.035,77021.0,77020.0,0.1]
[1731207447745,0.007,77015.0,77005.0,0.0486]
[1731207447979,0.025,77012.0,77005.0,0.0486]
[1731207448197,0.025,77012.0,77006.0,0.002597]
[1731207448400,0.023,77023.0,77008.0,0.005]
[1731207448620,0.002,77022.0,77012.0,0.0025964]
[1731207448872,0.002,77022.0,77011.0,0.0054]
[1731207449093,0.002,77012.0,77011.0,0.0004]
[1731207449302,0.002,77013.0,77011.0,0.0004]
[1731207449716,0.005,77022.0,77011.0,0.0004]
[1731207449717,0.023,77012.0,77011.0,0.0004]
[1731207450484,0.023,77013.0,77011.0,0.0004]
[1731207450948,0.002,77012.0,77011.0,0.0004]
[1731207451156,0.025,77012.0,77011.0,0.0004]
[1731207451735,0.023,77012.0,77011.0,0.0004]
[1731207451944,0.023,77013.0,77011.0,0.0004]
[1731207452314,0.023,77015.0,77011.0,0.0004]
[1731207452844,0.023,77015.0,77012.0,0.00609314]
[1731207453258,0.002,77019.0,77013.0,0.00259664]
[1731207453259,0.023,77018.0,77013.0,0.00259664]
[1731207453410,0.023,77018.0,77012.0,0.00609314]
[1731207453663,0.005,77041.0,77012.0,0.00609314]
[1731207453664,0.002,77029.0,77017.0,0.005]
[1731207453889,0.002,77023.0,77020.0,0.005]
[1731207454098,0.19473438,77033.0,77022.0,0.105]
[1731207454318,0.005,77057.0,77021.0,0.3826031]
[1731207454319,0.19473438,77032.0,77031.0,0.005]
[1731207454726,0.19973438,77066.0,77031.0,0.01102165]
[1731207454727,0.005,77045.0,77031.0,0.01102165]
[1731207454953,0.005,77049.0,77032.0,0.13224102]
[1731207455171,0.005,77051.0,77032.0,0.13224102]
[1731207455172,0.005,77050.0,77034.0,0.005]
[1731207455785,0.19473438,77066.0,77033.0,0.10601441]
[1731207455786,0.005,77041.0,77035.0,0.00601112]
[1731207456000,0.005,77041.0,77011.0,0.0054]
[1731207456001,0.005,77029.0,77023.0,0.19473438]
[1731207456450,0.023,77028.0,77012.0,0.005]
[1731207456643,0.005,77022.0,77011.0,0.0004]
[1731207456848,0.023,77021.0,77019.0,0.000836]
[1731207457691,0.03059573,77020.0,77019.0,0.000836]
[1731207457899,0.16283675,77020.0,77019.0,0.000836]
[1731207458106,0.16783675,77020.0,77019.0,0.000836]
[1731207458322,0.03559573,77020.0,77019.0,0.000836]
[1731207458529,0.033,77020.0,77019.0,0.000836]
[1731207460074,0.005,77028.0,77019.0,0.000836]
[1731207460300,0.005,77026.0,77019.0,0.000836]
[1731207460500,0.005,77028.0,77019.0,0.000836]
[1731207460948,0.005,77027.0,77019.0,0.000836]
[1731207461168,0.005,77039.0,77021.0,0.1]
[1731207461348,0.19473438,77030.0,77022.0,0.00259605]
[1731207461623,0.005,77033.0,77021.0,0.1]
[1731207461851,0.005,77031.0,77021.0,0.1]
[1731207462068,0.005,77032.0,77022.0,0.19473438]
[1731207462274,0.005,77032.0,77023.0,0.12584]
[1731207463150,0.005,77032.0,77024.0,0.00259614]
[1731207463375,0.00259573,77047.0,77019.0,0.000836]
[1731207463376,0.005,77036.0,77035.0,0.1]
[1731207463597,0.19473438,77038.0,77035.0,0.1]
[1731207463806,0.01,77036.0,77035.0,0.1]
[1731207464448,0.028,77035.0,77024.0,0.1]
[1731207464861,0.005,77032.0,77024.0,0.1]
[1731207465297,0.005,77032.0,77022.0,0.02584]
[1731207465515,0.023,77031.0,77022.0,0.02584]
[1731207466065,0.023,77031.0,77023.0,0.51532]
[1731207466411,0.023,77029.0,77023.0,0.51532]
[1731207466611,0.023,77024.0,77023.0,0.51532]
[1731207467634,0.023,77024.0,77023.0,0.48948]
[1731207467842,0.023,77024.0,77023.0,0.51532]
[1731207468272,0.023,77024.0,77023.0,0.48948]
[1731207468691,0.023,77024.0,77023.0,0.51532]
[1731207468971,0.005,77025.0,77023.0,0.48948]
[1731207469175,0.001676,77032.0,77023.0,0.48948]
[1731207469408,0.001676,77032.0,77031.0,0.34776578]
[1731207469618,0.005,77047.0,77035.0,0.0773]
[1731207469832,0.005,77047.0,77045.0,0.1]
[1731207470050,0.19973438,77048.0,77046.0,0.48938]
[1731207470277,0.01,77047.0,77046.0,0.48938]
[1731207470924,0.03630141,77063.0,77061.0,0.1]
[1731207471143,0.13224102,77063.0,77062.0,0.19456562]
[1731207471361,0.13224102,77063.0,77062.0,0.29456562]
[1731207471768,0.00259573,77075.0,77063.0,0.1]
[1731207471999,0.3269754,77074.0,77063.0,0.1]
[1731207472210,0.3269754,77074.0,77065.0,0.1]
[1731207472211,0.13224102,77074.0,77065.0,0.1]
[1731207472443,0.13224102,77074.0,77066.0,0.58401]
[1731207472664,0.00259573,77073.0,77067.0,0.1]
[1731207472894,0.00259573,77073.0,77069.0,0.1]
[1731207473096,0.00759573,77089.0,77071.0,0.1]
[1731207473314,0.01350236,77086.0,77073.0,0.1]
[1731207473536,0.13483675,77085.0,77073.0,0.1]
[1731207473747,0.13483675,77085.0,77074.0,0.19473438]
[1731207473962,0.13483675,77085.0,77075.0,0.1]
[1731207474593,0.023,77084.0,77075.0,0.1]
[1731207474731,0.13483675,77083.0,77075.0,0.1]
[1731207474940,0.023,77082.0,77074.0,0.1]
[1731207475278,0.21773438,77080.0,77073.0,0.1]
[1731207475471,0.023,77078.0,77072.0,0.58398]
[1731207475583,0.023,77076.0,77072.0,0.58398]
[1731207475788,0.005,77073.0,77072.0,0.58398]
[1731207475998,0.16283675,77073.0,77072.0,0.58398]
[1731207476198,0.17283675,77073.0,77072.0,0.58398]
[1731207476739,0.17283675,77073.0,77072.0,0.55535155]
[1731207476954,0.17283675,77073.0,77072.0,0.53739471]
[1731207477396,0.17283675,77073.0,77072.0,0.51270406]
[1731207480165,0.17483675,77073.0,77072.0,0.51270406]
[1731207480379,0.17283675,77073.0,77072.0,0.51270406]
[1731207481282,0.17483675,77073.0,77072.0,0.01646069]
[1731207481486,0.005,77056.0,77054.0,0.19473438]
[1731207481715,0.13483675,77055.0,77054.0,0.19473438]
[1731207482310,0.13483675,77055.0,77037.0,0.19473438]
[1731207482744,0.007,77047.0,77037.0,0.19473438]
[1731207482951,0.24776578,77041.0,77037.0,0.19473438]
[1731207483151,0.13483675,77040.0,77037.0,0.19473438]
[1731207483305,0.023,77039.0,77028.0,0.19473438]
[1731207483523,0.023,77037.0,77028.0,0.19473438]
[1731207483708,0.13483675,77036.0,77028.0,0.19473438]
[1731207483913,0.023,77035.0,77027.0,0.0329839]
[1731207484167,0.023,77035.0,77020.0,0.0756]
[1731207484168,0.023,77033.0,77020.0,0.0756]
[1731207484355,0.13224102,77032.0,77020.0,0.1756]
[1731207484560,0.023,77031.0,77020.0,0.1756]
[1731207484760,0.13483675,77030.0,77020.0,0.1756]
[1731207484983,0.023,77029.0,77020.0,0.1756]
[1731207485182,0.023,77029.0,77019.0,0.047036]